bitfinex/quotes_SOLUSD_20251202
["timestamp","ask_amount","ask_price","bid_price","bid_amount"]
[1764690312614,13.47970942,139.04,138.98,13.47970942]
[1764690312777,0.7,139.07,139.03,13.47970942]
[1764690312978,35.92470182,139.18,138.93,0.66]
[1764690312979,7.18597298,139.16,138.95,35.88953919]
[1764690313286,13.47970942,139.16,139.0,13.47970942]
[1764690313485,13.47970942,139.11,138.93,0.66]
[1764690313801,10.08,139.12,139.08,13.47970942]
[1764690313977,10.08,139.12,138.93,0.66]
[1764690314304,13.47970942,139.09,138.94,0.66]
[1764690314615,0.7,139.11,139.08,13.47970942]
[1764690314812,7.88900961,139.11,139.06,13.47970942]
[1764690314976,7.88900961,139.11,139.01,0.66]
[1764690315178,0.7,139.1,139.01,0.66]
[1764690315401,0.7,139.1,139.05,13.47970942]
[1764690315573,14.17970942,139.1,139.03,13.47970942]
[1764690316006,13.47970942,139.06,138.94,0.66]
[1764690316197,0.7,139.09,138.94,0.66]
[1764690316401,0.7,139.08,139.02,13.47970942]
[1764690316588,0.7,139.08,139.03,13.47970942]
[1764690316787,10.74,139.08,139.02,13.47970942]
[1764690317001,0.7,139.17,139.07,13.47970942]
[1764690317184,17.90339199,139.21,139.16,13.47970942]
[1764690317387,10.02,139.21,139.15,13.47970942]
[1764690317686,10.72,139.2,139.08,0.66]
[1764690317878,10.72,139.2,139.15,13.47970942]
[1764690318083,0.7,139.19,139.14,13.47970942]
[1764690318386,10.02,139.2,139.08,0.66]
[1764690318583,7.98294121,139.22,139.08,0.66]
[1764690318584,7.98295201,139.22,139.08,0.66]
[1764690318782,13.47970942,139.2,139.13,13.47970942]
[1764690319003,21.3634774,139.21,139.08,0.66]
[1764690319210,10.02,139.19,139.08,0.66]
[1764690319390,23.49970942,139.19,139.12,13.47970942]
[1764690319597,10.7,139.18,139.12,13.47970942]
[1764690319910,10.0,139.17,139.13,13.47970942]
[1764690320206,10.7,139.17,139.12,13.47970942]
[1764690320398,10.0,139.16,139.14,13.47970942]
[1764690320796,10.0,139.16,139.13,13.47970942]
[1764690321012,10.0,139.16,139.14,13.47970942]
[1764690321208,10.0,139.16,139.13,13.47970942]
[1764690321407,17.18603614,139.16,139.12,13.47970942]
[1764690321591,0.7,139.15,139.05,0.66]
[1764690321786,0.7,139.15,139.12,13.47970942]
[1764690322489,0.7,139.15,139.1,13.47970942]
[1764690322907,0.1,139.22,139.14,13.47970942]
[1764690323122,0.8,139.22,139.17,13.47970942]
[1764690323417,17.94290291,139.22,139.17,13.47970942]
[1764690323603,10.76,139.22,139.18,13.47970942]
[1764690323812,35.20046389,139.22,139.16,13.47970942]
[1764690323987,0.7,139.21,139.16,13.47970942]
[1764690324194,0.7,139.21,139.18,13.47970942]
[1764690324404,0.7,139.21,139.11,0.66]
[1764690324617,17.24310528,139.22,139.11,0.66]
[1764690324618,0.1,139.22,139.11,0.66]
[1764690324785,0.1,139.22,139.21,13.47970942]
[1764690324992,3.24159056,139.3,139.21,35.29970942]
[1764690325186,3.24159056,139.3,139.22,0.66]
[1764690325405,13.18159056,139.3,139.22,0.66]
[1764690325592,13.18159056,139.3,139.27,13.47970942]
[1764690325801,3.24159056,139.3,139.29,13.47970942]
[1764690326114,0.7,139.29,139.27,13.47970942]
[1764690326513,10.64,139.29,139.27,13.47970942]
[1764690326809,10.64,139.29,139.17,0.66]
[1764690327006,0.7,139.28,139.22,13.47970942]
[1764690327313,38.61074984,139.27,139.2,13.47970942]
[1764690327623,3.24159056,139.3,139.26,13.47970942]
[1764690327933,9.92,139.38,139.29,13.47970942]
[1764690328094,9.92,139.38,139.27,0.66]
[1764690328294,9.92,139.39,139.27,0.66]
[1764690328490,9.92,139.39,139.31,13.47970942]
[1764690328703,0.7,139.38,139.32,13.47970942]
[1764690328901,0.7,139.38,139.24,0.66]
[1764690329120,9.92,139.37,139.21,0.66]
[1764690329316,9.92,139.36,139.34,13.47970942]
[1764690329698,0.7,139.35,139.31,13.47970942]
[1764690330039,0.7,139.43,139.34,13.47970942]
[1764690330331,13.47970942,139.52,139.42,13.47970942]
[1764690330497,10.6,139.51,139.5,13.47970942]
[1764690330696,9.9,139.51,139.42,0.66]
[1764690330902,0.7,139.5,139.45,13.47970942]
[1764690331101,7.16897268,139.49,139.42,13.47970942]
[1764690331321,13.47970942,139.45,139.21,1.37833919]
[1764690331831,0.7,139.44,139.23,35.86142635]
[1764690332004,13.47970942,139.42,139.35,13.47970942]
[1764690332204,23.37970942,139.43,139.36,13.47970942]
[1764690332405,0.7,139.42,139.36,13.47970942]
[1764690332635,13.47970942,139.48,139.41,13.47970942]
[1764690332807,0.7,139.46,139.42,13.47970942]
[1764690333218,7.87089115,139.46,139.3,0.7]
[1764690333432,25.79717825,139.46,139.2,13.47970942]
[1764690333622,10.6,139.45,139.39,13.47970942]
[1764690333809,13.47970942,139.42,139.31,0.7]
[1764690334009,10.6,139.45,139.27,0.7]
[1764690334010,0.72,139.44,139.27,0.7]
[1764690334213,13.47970942,139.35,139.29,13.47970942]
[1764690334429,13.47970942,139.31,139.25,13.47970942]
[1764690334674,9.88,139.3,139.18,0.7]
[1764690334824,13.47970942,139.25,139.19,13.47970942]
[1764690335043,0.72,139.29,139.22,13.47970942]
[1764690335333,20.65999533,139.28,139.13,0.7]
[1764690335524,13.47970942,139.26,139.2,13.47970942]
[1764690335841,0.72,139.27,139.1,0.7]
[1764690336014,13.47970942,139.2,139.14,13.47970942]
[1764690336215,13.47970942,139.16,138.94,5.48769292]
[1764690336418,61.02864891,139.28,138.94,5.48769292]
[1764690336419,9.86,139.15,139.05,13.47970942]
[1764690336717,9.86,139.15,138.9,0.7199424]
[1764690336718,13.47970942,139.08,138.84,9.86]
[1764690336936,13.47970942,139.08,139.02,13.47970942]
[1764690337243,0.72,139.07,139.02,13.47970942]
[1764690337413,0.72,139.07,138.96,0.7]
[1764690337610,13.47970942,139.1,138.96,0.7]
[1764690337831,0.72,139.11,139.07,13.47970942]
[1764690338006,0.72,139.1,138.96,0.71963154]
[1764690338206,13.47970942,139.13,139.08,13.47970942]
[1764690338467,13.47970942,139.12,139.06,13.47970942]
[1764690338670,14.19970942,139.12,139.06,13.47970942]
[1764690338874,0.72,139.11,139.06,13.47970942]
[1764690339159,7.1890726,139.1,139.05,13.47970942]
[1764690339536,0.72,139.09,138.99,0.7]
[1764690339733,13.47970942,139.08,138.94,0.71973513]
[1764690340054,0.72,139.09,138.98,13.47970942]
[1764690340251,9.84,139.11,138.98,13.47970942]
[1764690340457,14.19970942,139.08,138.95,0.7]
[1764690340659,14.19970942,139.08,139.02,13.47970942]
[1764690340872,0.72,139.07,138.95,0.7]
[1764690341034,23.29970942,139.06,138.95,0.7]
[1764690341232,30.4909637,139.06,139.0,13.47970942]
[1764690341434,17.01125428,139.06,138.82,36.26025753]
[1764690341737,13.47970942,138.99,138.93,13.47970942]
[1764690342042,0.72,139.05,138.98,13.47970942]
[1764690342237,0.68,139.14,139.04,13.47970942]
[1764690342436,9.82,139.15,138.97,0.71957976]
[1764690342637,9.82,139.15,138.82,1.43035729]
[1764690342638,0.68,139.13,138.82,1.43035729]
[1764690342839,9.82,139.12,138.83,10.8853831]
[1764690343048,9.82,139.12,138.84,0.72025352]
[1764690343371,7.1890726,139.1,138.84,0.71]
[1764690343538,15.50511286,139.0,138.84,0.71]
[1764690343732,25.32511286,139.0,138.94,15.50511286]
[1764690344069,16.18511286,138.99,138.93,15.50511286]
[1764690344374,15.50511286,138.98,138.84,0.71]
[1764690344576,0.68,138.98,138.93,15.50511286]
[1764690344870,0.68,138.98,138.84,0.71]
[1764690345070,15.50511286,138.96,138.84,0.71]
[1764690345249,15.50511286,138.94,138.88,15.50511286]
[1764690345456,15.50511286,138.91,138.86,15.50511286]
[1764690345768,15.50511286,138.91,138.85,15.50511286]
[1764690345983,16.18511286,138.9,138.84,15.50511286]
[1764690346535,0.68,138.9,138.84,15.50511286]
[1764690346750,15.50511286,138.88,138.77,0.71]
[1764690347048,0.68,138.89,138.78,15.50511286]
[1764690347049,15.50511286,138.84,138.78,15.50511286]
[1764690347373,9.8,138.87,138.78,15.50511286]
[1764690347575,15.50511286,138.85,138.79,15.50511286]
[1764690347936,0.68,138.85,138.8,15.50511286]
[1764690348160,15.50511286,138.83,138.72,0.71]
[1764690348345,15.50511286,138.82,138.76,15.50511286]
[1764690348545,0.68,138.83,138.77,15.50511286]
[1764690348756,72.19346679,139.02,138.8,15.50511286]
[1764690348958,0.68,138.87,138.68,36.72249059]
[1764690349159,16.18511286,138.87,138.82,15.50511286]
[1764690349356,15.50511286,138.84,138.78,15.50511286]
[1764690349661,0.68,138.86,138.72,15.50511286]
[1764690349957,0.68,138.86,138.6,0.2]
[1764690349958,15.50511286,138.82,138.77,15.50511286]
[1764690350162,15.50511286,138.82,138.76,15.50511286]
[1764690350340,0.68,138.81,138.62,0.72139662]
[1764690350541,0.68,138.81,138.76,15.50511286]
[1764690350741,0.68,138.81,138.77,15.50511286]
[1764690350942,0.68,138.81,138.62,0.72139662]
[1764690351139,15.50511286,138.8,138.62,0.72139662]
[1764690351363,15.50511286,138.8,138.74,15.50511286]
[1764690351667,0.68,138.79,138.63,0.71]
[1764690351847,0.68,138.79,138.76,15.50511286]
[1764690352163,0.68,138.79,138.63,0.71]
[1764690352352,0.68,138.79,138.75,15.50511286]
[1764690352553,0.68,138.79,138.74,15.50511286]
[1764690352735,23.39043976,138.79,138.74,15.50511286]
[1764690352935,7.8853269,138.79,138.73,15.50511286]
[1764690353155,0.68,138.78,138.73,15.50511286]
[1764690353574,0.68,138.78,138.66,0.71]
[1764690353789,0.68,138.78,138.74,15.50511286]
[1764690353954,0.68,138.78,138.75,15.50511286]
[1764690354274,10.42,138.81,138.76,15.50511286]
[1764690354573,0.68,138.8,138.76,15.50511286]
[1764690354978,0.68,138.8,138.75,15.50511286]
[1764690355273,7.88461353,138.8,138.76,15.50511286]
[1764690355472,0.68,138.8,138.77,15.50511286]
[1764690355671,9.74,138.81,138.76,15.50511286]
[1764690355975,0.68,138.8,138.76,15.50511286]
[1764690356349,16.18511286,138.8,138.75,15.50511286]
[1764690356550,15.50511286,138.79,138.73,15.50511286]
[1764690356850,0.68,138.79,138.69,0.71]
[1764690357169,0.68,138.78,138.69,0.71]
[1764690357492,0.68,138.87,138.77,15.50511286]
[1764690357678,15.50511286,138.93,138.86,15.50511286]
[1764690357972,9.7,138.92,138.88,15.50511286]
[1764690358350,0.68,138.91,138.81,0.71]
[1764690358569,0.68,138.91,138.82,15.50511286]
[1764690358872,0.68,138.91,138.83,15.50511286]
[1764690359169,15.50511286,138.9,138.84,15.50511286]
[1764690359363,15.50511286,138.89,138.76,0.71]
[1764690359669,7.8789835,138.91,138.82,15.50511286]
[1764690359670,15.50511286,138.88,138.82,15.50511286]
[1764690359870,15.50511286,138.88,138.7,0.72098053]
[1764690360074,0.68,138.87,138.7,0.72098053]
[1764690360255,0.68,138.87,138.78,15.50511286]
[1764690360457,15.50511286,138.85,138.79,15.50511286]
[1764690360655,15.50511286,138.8,138.73,15.50511286]
[1764690360856,9.68,138.84,138.67,0.71]
[1764690361067,7.88305409,138.83,138.76,15.50511286]
[1764690361271,9.68,138.88,138.82,15.50511286]
[1764690361480,9.68,138.88,138.73,0.72082462]
[1764690361663,0.68,138.87,138.68,0.71]
[1764690361865,0.68,138.87,138.75,15.50511286]
[1764690361866,15.50511286,138.81,138.75,15.50511286]
[1764690362064,9.68,138.8,138.75,15.50511286]
[1764690362259,9.68,138.8,138.65,0.71]
[1764690362260,15.50511286,138.78,138.65,0.71]
[1764690362463,0.68,138.79,138.75,15.50511286]
[1764690362676,10.34,138.79,138.74,15.50511286]
[1764690362982,22.71076208,138.78,138.73,15.50511286]
[1764690363168,0.68,138.78,138.73,15.50511286]
[1764690363371,15.50511286,138.74,138.69,15.50511286]
[1764690363673,0.68,138.77,138.6,0.2]
[1764690363862,15.50511286,138.71,138.66,15.50511286]
[1764690364064,9.66,138.7,138.66,15.50511286]
[1764690364275,9.66,138.7,138.6,0.2]
[1764690364483,0.68,138.69,138.66,15.50511286]
[1764690364981,9.64,138.72,138.61,0.71]
[1764690365178,10.32,138.73,138.71,15.50511286]
[1764690365377,10.32,138.73,138.7,15.50511286]
[1764690365581,10.32,138.73,138.61,0.71]
[1764690365762,0.68,138.73,138.71,15.50511286]
[1764690366571,10.3,138.76,138.72,15.50511286]
[1764690366771,0.68,138.8,138.75,15.50511286]
[1764690367064,0.68,138.8,138.65,0.71]
[1764690367265,0.68,138.8,138.6,0.2]
[1764690367465,15.50511286,138.76,138.7,15.50511286]
[1764690367682,15.50511286,138.77,138.62,0.71]
[1764690367865,15.50511286,138.77,138.71,15.50511286]
[1764690368064,15.50511286,138.75,138.62,0.71]
[1764690368267,22.71387871,138.72,138.6,0.2]
[1764690368572,15.50511286,138.7,138.65,15.50511286]
[1764690368776,0.68,138.71,138.66,15.50511286]
[1764690369073,0.68,138.74,138.7,15.50511286]
[1764690369277,0.68,138.74,138.73,15.50511286]
[1764690369472,10.3,138.77,138.61,0.71]
[1764690369693,0.68,138.76,138.61,0.71]
[1764690369882,0.68,138.76,138.71,15.50511286]
[1764690370081,16.18511286,138.76,138.61,0.71]
[1764690370270,7.20928555,138.71,138.6,0.2]
[1764690370470,7.20928555,138.71,138.66,15.50511286]
[1764690370680,15.50511286,138.69,138.6,0.2]
[1764690370875,9.6,138.68,138.63,15.50511286]
[1764690371058,9.6,138.68,138.64,15.50511286]
[1764690371059,10.28,138.68,138.64,15.50511286]
[1764690371264,0.68,138.67,138.6,0.2]
[1764690371488,0.68,138.67,138.66,15.50511286]
[1764690371693,0.68,138.67,138.6,0.2]
[1764690371907,0.67,138.72,138.66,15.50511286]
[1764690372209,36.03289383,138.77,138.71,15.50511286]
[1764690372210,10.25,138.77,138.71,15.50511286]
[1764690372489,0.67,138.76,138.63,0.68]
[1764690372679,0.67,138.76,138.71,15.50511286]
[1764690372865,0.67,138.76,138.74,15.50511286]
[1764690373199,0.67,138.76,138.75,15.50511286]
[1764690373488,61.17748667,138.94,138.75,15.50511286]
[1764690373691,0.67,138.81,138.77,15.50511286]
[1764690374104,10.23,138.81,138.6,0.2]
[1764690374268,10.23,138.81,138.79,15.50511286]
[1764690374603,0.67,138.8,138.61,1.40144866]
[1764690374767,16.17511286,138.8,138.62,0.68]
[1764690374970,7.228,138.91,138.79,15.50511286]
[1764690374971,0.67,138.84,138.79,15.50511286]
[1764690375189,15.50511286,138.83,138.77,15.50511286]
[1764690375504,0.67,138.84,138.74,15.50511286]
[1764690375670,0.67,138.83,138.76,15.50511286]
[1764690375871,15.50511286,138.82,138.76,15.50511286]
[1764690376077,0.67,138.83,138.75,15.50511286]
[1764690376278,15.50511286,138.81,138.75,15.50511286]
[1764690376515,15.50511286,138.79,138.74,15.50511286]
[1764690376699,9.56,138.78,138.69,15.50511286]
[1764690376996,15.50511286,138.75,138.7,15.50511286]
[1764690377176,15.50511286,138.75,138.69,15.50511286]
[1764690377379,0.67,138.74,138.69,15.50511286]
[1764690377583,16.17511286,138.74,138.68,15.50511286]
[1764690377801,0.67,138.74,138.69,15.50511286]
[1764690377976,0.67,138.73,138.69,15.50511286]
[1764690378174,0.67,138.73,138.62,0.68]
[1764690378484,0.67,138.73,138.69,15.50511286]
[1764690379186,0.67,138.73,138.6,0.2]
[1764690379187,7.87840689,138.73,138.68,15.50511286]
[1764690379389,25.04511286,138.72,138.61,0.68]
[1764690379719,15.50511286,138.71,138.65,15.50511286]
[1764690379874,16.17511286,138.71,138.65,15.50511286]
[1764690380071,0.67,138.7,138.66,15.50511286]
[1764690380487,7.87989976,138.7,138.66,15.50511286]
[1764690380682,0.67,138.69,138.6,0.2]
[1764690380890,0.67,138.69,138.67,15.50511286]
[1764690381084,0.67,138.69,138.68,15.50511286]
[1764690381305,10.19,138.73,138.68,15.50511286]
[1764690381505,0.67,138.72,138.7,15.50511286]
[1764690381799,0.67,138.72,138.71,15.50511286]
[1764690381998,25.20887352,138.84,138.71,15.50511286]
[1764690381999,9.5,138.76,138.71,15.50511286]
[1764690382200,9.5,138.76,138.73,15.50511286]
[1764690382390,10.17,138.76,138.66,0.68]
[1764690382596,10.17,138.76,138.73,15.50511286]
[1764690382902,10.17,138.76,138.75,15.50511286]
[1764690383102,9.5,138.76,138.75,15.50511286]
[1764690383283,0.67,138.79,138.75,15.50511286]
[1764690383804,9.5,138.81,138.78,15.50511286]
[1764690383979,0.67,138.82,138.78,15.50511286]
[1764690384185,0.67,138.81,138.78,15.50511286]
[1764690384496,0.67,138.81,138.72,0.68]
[1764690384799,9.48,138.8,138.78,15.50511286]
[1764690385201,0.67,138.79,138.78,15.50511286]
[1764690385501,10.15,138.84,138.78,15.50511286]
[1764690385697,0.67,138.79,138.71,0.68]
[1764690385899,0.67,138.79,138.78,15.50511286]
[1764690386080,0.67,138.82,138.78,15.50511286]
[1764690386789,0.67,138.82,138.8,15.50511286]
[1764690387002,0.67,138.82,138.81,15.50511286]
[1764690387227,9.46,138.83,138.81,15.50511286]
[1764690387385,0.67,138.82,138.74,7.20772668]
[1764690387577,0.67,138.82,138.74,61.94563681]
[1764690387778,9.46,138.83,138.81,15.50511286]
[1764690388214,9.46,138.83,138.8,15.50511286]
[1764690388384,0.67,138.82,138.79,15.50511286]
[1764690388585,0.67,138.82,138.78,7.20549313]
[1764690388785,0.67,138.82,138.78,15.50511286]
[1764690388987,0.67,138.82,138.8,15.50511286]
[1764690389195,0.77,138.85,138.81,15.50511286]
[1764690389508,9.44,138.84,138.8,15.50511286]
[1764690389885,0.67,138.83,138.8,15.50511286]
[1764690390292,0.67,138.83,138.72,7.4]
[1764690390498,22.70868583,138.82,138.73,25.22852464]
[1764690390684,40.71761826,138.82,138.76,15.50511286]
[1764690390887,0.67,138.81,138.8,15.50511286]
[1764690391106,10.09,138.81,138.73,25.22852464]
[1764690391285,25.59511286,138.81,138.75,15.50511286]
[1764690391478,0.67,138.8,138.76,15.50511286]
[1764690391683,9.42,138.8,138.79,15.50511286]
[1764690392080,0.67,138.83,138.79,15.50511286]
[1764690392389,9.4,138.82,138.78,15.50511286]
[1764690392597,9.4,138.82,138.79,15.50511286]
[1764690392803,0.67,138.81,138.78,25.21949181]
[1764690393006,10.07,138.81,138.77,15.50511286]
[1764690393201,10.07,138.81,138.74,25.22704338]
[1764690393397,0.67,138.8,138.74,25.22704338]
[1764690393600,15.50511286,138.78,138.72,30.11377697]
[1764690393787,16.17511286,138.8,138.72,14.60866411]
[1764690393995,0.67,138.79,138.77,15.50511286]
[1764690394190,10.07,138.79,138.77,15.50511286]
[1764690394486,0.67,138.79,138.78,15.50511286]
[1764690394732,10.05,138.79,138.78,22.71076208]
[1764690394893,10.05,138.79,138.76,18.01591624]
[1764690394894,10.05,138.79,138.73,7.20824623]
[1764690395100,10.05,138.79,138.75,15.50511286]
[1764690395413,0.67,138.78,138.76,15.50511286]
[1764690395808,0.67,138.82,138.77,15.50511286]
[1764690395994,0.67,138.82,138.8,15.50511286]
[1764690396194,0.67,138.82,138.73,61.27009297]
[1764690396195,0.1,138.85,138.81,15.50511286]
[1764690396514,0.1,138.85,138.84,15.50511286]
[1764690396704,0.1,138.85,138.84,22.70764815]
[1764690397195,0.1,138.85,138.81,15.50511286]
[1764690397196,0.77,138.85,138.81,15.50511286]
[1764690397715,0.1,138.85,138.84,15.50511286]
[1764690398697,0.1,138.85,138.84,22.70764815]
[1764690399105,8.56,138.9,138.89,15.50511286]
[1764690399307,0.67,138.91,138.89,15.50511286]
[1764690399491,0.67,138.91,138.9,15.50511286]
[1764690400016,10.01,138.91,138.9,15.50511286]
[1764690400215,9.34,138.91,138.9,15.50511286]
[1764690400400,0.67,138.94,138.9,15.50511286]
[1764690400600,26.6,138.95,138.94,7.19735137]
[1764690400808,26.6,138.95,138.94,22.70246423]
[1764690401108,17.93,138.95,138.94,22.70246423]
[1764690401312,0.67,138.98,138.94,7.19735137]
[1764690401498,9.32,138.96,138.95,15.50511286]
[1764690401815,0.67,139.01,138.95,15.50511286]
[1764690402110,9.32,139.0,138.98,15.50511286]
[1764690402312,9.32,139.0,138.97,15.50511286]
[1764690402504,15.50511286,138.98,138.9,7.19942404]
[1764690402695,9.32,138.97,138.89,17.999856]
[1764690402890,9.32,138.97,138.89,25.1997984]
[1764690403217,9.99,138.96,138.91,15.50511286]
[1764690403594,0.67,138.95,138.89,25.1997984]
[1764690403918,0.67,138.95,138.92,15.50511286]
[1764690404416,0.67,138.95,138.92,13.3954697]
[1764690404722,9.3,138.94,138.93,13.3954697]
[1764690404904,0.67,138.95,138.87,0.71]
[1764690405101,9.97,138.95,138.92,13.3954697]
[1764690405306,9.97,138.95,138.91,13.3954697]
[1764690405506,9.3,138.95,138.91,13.3954697]
[1764690405704,0.67,138.94,138.9,13.3954697]
[1764690406020,0.67,138.94,138.89,13.3954697]
[1764690406909,0.67,138.94,138.89,20.59532952]
[1764690407101,0.67,138.94,138.9,13.3954697]
[1764690407301,0.67,138.94,138.89,20.59532952]
[1764690407499,13.3954697,138.9,138.83,13.3954697]
[1764690407726,13.3954697,138.85,138.79,13.3954697]
[1764690407923,13.3954697,138.83,138.77,13.3954697]
[1764690408108,9.28,138.82,138.79,13.3954697]
[1764690408313,9.28,138.82,138.81,13.3954697]
[1764690408619,9.95,138.82,138.79,9.13449558]
[1764690408821,9.95,138.82,138.78,9.13449558]
[1764690409326,0.67,138.81,138.75,25.22522521]
[1764690409531,0.67,138.81,138.76,9.13449558]
[1764690409827,9.80449558,138.81,138.75,9.13449558]
[1764690410124,9.13449558,138.8,138.69,0.71]
[1764690410316,0.67,138.8,138.75,9.13449558]
[1764690410503,0.67,138.79,138.69,0.71]
[1764690410822,7.87514371,138.79,138.7,61.28334533]
[1764690411022,7.87514371,138.79,138.75,9.13449558]
[1764690411327,9.13449558,138.77,138.71,9.13449558]
[1764690411521,18.39449558,138.76,138.71,9.13449558]
[1764690411726,9.26,138.76,138.69,7.21019995]
[1764690411923,0.67,138.75,138.66,7.21188518]
[1764690412226,9.13449558,138.73,138.66,7.21188518]
[1764690412401,34.36699502,138.71,138.65,9.13449558]
[1764690412607,9.13449558,138.69,138.63,9.13449558]
[1764690412805,9.80449558,138.68,138.63,9.13449558]
[1764690413023,9.80449558,138.68,138.6,7.41451891]
[1764690413223,0.67,138.67,138.63,9.13449558]
[1764690413528,0.67,138.67,138.64,9.13449558]
[1764690413728,9.13449558,138.69,138.6,34.58653252]
[1764690413729,0.67,138.69,138.6,34.58653252]
[1764690413908,0.67,138.69,138.68,9.13449558]
[1764690414102,0.67,138.69,138.66,9.13449558]
[1764690414304,9.22,138.68,138.65,9.13449558]
[1764690414507,9.22,138.68,138.66,9.13449558]
[1764690414717,0.67,138.72,138.67,9.13449558]
[1764690414923,0.67,138.72,138.7,9.13449558]
[1764690414924,9.22,138.71,138.7,9.13449558]
[1764690416014,0.67,138.79,138.7,9.84449558]
[1764690416209,0.67,138.79,138.77,9.13449558]
[1764690416433,9.89,138.79,138.77,13.42444117]
[1764690416832,68.37745267,139.0,138.76,7.20655053]
[1764690417010,68.37745267,139.0,138.79,13.42444117]
[1764690417011,13.42444117,138.84,138.79,13.42444117]
[1764690417211,9.22,138.83,138.79,13.42444117]
[1764690417437,0.67,138.82,138.79,13.42444117]
[1764690417645,0.67,138.82,138.74,18.01906632]
[1764690417818,14.09444117,138.82,138.76,13.42444117]
[1764690418019,0.67,138.82,138.76,13.42444117]
[1764690418224,0.67,138.81,138.77,13.42444117]
[1764690418426,0.67,138.81,138.76,13.42444117]
[1764690418614,21.29874773,138.81,138.75,20.63139935]
[1764690418810,7.87430656,138.81,138.76,13.42444117]
[1764690419010,0.67,138.8,138.76,13.42444117]
[1764690419219,0.67,138.8,138.77,13.42444117]
[1764690419419,14.09444117,138.8,138.75,13.42444117]
[1764690419815,25.21453637,138.81,138.68,36.05378427]
[1764690419816,0.67,138.79,138.74,13.42444117]
[1764690420131,0.67,138.79,138.76,13.42444117]
[1764690420335,0.67,138.79,138.77,13.42444117]
[1764690420541,14.09444117,138.79,138.73,7.20813284]
[1764690420717,38.64421346,138.78,138.69,18.02551621]
[1764690420913,35.99712023,138.9,138.7,25.23431866]
[1764690420914,0.67,138.8,138.7,25.23431866]
[1764690421133,24.47901238,138.91,138.71,0.71]
[1764690421438,24.47901238,138.91,138.89,13.42444117]
[1764690421439,9.85,138.9,138.89,13.42444117]
[1764690421617,23.27444117,138.9,138.71,0.71]
[1764690421814,17.28,138.91,138.89,13.42444117]
[1764690422125,17.28,138.91,138.72,9.89]
[1764690422126,9.18,138.9,138.85,13.42444117]
[1764690422311,9.85,138.9,138.85,13.42444117]
[1764690422515,0.67,138.89,138.81,13.42444117]
[1764690422708,13.42444117,138.85,138.8,20.62871997]
[1764690423018,13.42444117,138.81,138.72,18.02191464]
[1764690423225,13.42444117,138.81,138.76,13.42444117]
[1764690423426,13.42444117,138.81,138.72,18.02191464]
[1764690423427,0.67,138.8,138.75,13.42444117]
[1764690423631,9.18,138.81,138.79,13.42444117]
[1764690423929,0.67,138.84,138.73,0.71]
[1764690424132,5.78,138.83,138.73,0.71]
[1764690424326,5.78,138.83,138.82,13.42444117]
[1764690424841,0.67,138.85,138.82,13.42444117]
[1764690425024,9.83,138.84,138.82,13.42444117]
[1764690425217,7.87102378,138.87,138.83,13.42444117]
[1764690425412,9.16,138.86,138.83,13.42444117]
[1764690425622,23.25444117,138.86,138.81,13.42444117]
[1764690425833,0.67,138.85,138.81,13.42444117]
[1764690426026,0.67,138.85,138.82,13.42444117]
[1764690426432,9.16,138.85,138.84,13.42444117]
[1764690426636,9.16,138.85,138.83,13.42444117]
[1764690426831,9.16,138.85,138.84,13.42444117]
[1764690427035,9.16,138.85,138.82,7.20321853]
[1764690427036,9.83,138.85,138.82,7.20321853]
[1764690427235,9.83,138.85,138.83,13.42444117]
[1764690427422,9.16,138.85,138.83,13.42444117]
[1764690427743,0.67,138.84,138.81,13.42444117]
[1764690427930,9.16,138.85,138.83,13.42444117]
[1764690428131,0.67,138.87,138.83,13.42444117]
[1764690428328,9.14,138.86,138.83,13.42444117]